[Event "CCT Chessable Masters D-III 2024"]
[Site "Online"]
[Date "2024.02.04"]
[Round "4"]
[White "Grischuk, Alexander"]
[Black "Safarli, Eltaj"]
[Result "1/2-1/2"]
[ECO "E48"]
[WhiteElo "2732"]
[BlackElo "2604"]
[Annotator "ChessBase"]
[PlyCount "98"]
[EventDate "2024.01.12"]
[EventType "k.o."]
[EventCountry "NET"]
[SourceTitle "playchess.com"]
[Source "ChessBase"]
[SourceQuality "1"]
[TimeControl "600+2"]

1. d4 {[%emt 0:00:02]} Nf6 {[%emt 0:00:04]} 2. c4 {[%emt 0:00:02]} e6 {[%emt 0:00:01]} 3. Nc3 {[%emt 0:00:02]} Bb4 {[%emt 0:00:02]} 4. e3 {[%emt 0:00:01]} O-O {[%emt 0:00:06]} 5. Bd3 {[%emt 0:00:02]} d5 {[%emt 0:00:13]} 6. cxd5 {[%emt 0:00:02]} exd5 {[%emt 0:00:04]} 7. a3 {[%emt 0:00:01]} Bd6 {[%emt 0:00:14]} 8. Qc2 {[%emt 0:00:02]} c5 {[%emt 0:00:14]} 9. dxc5 {[%emt 0:00:22]} Bxc5 {[%emt 0:00:02]} 10. h3 {[%emt 0:00:30]} Nc6 {[%emt 0:00:21]} 11. Nf3 {[%emt 0:00:02]} h6 {[%emt 0:00:42]} 12. b4 {[%emt 0:02:24]} Bb6 {[%emt 0:01:09]} 13. Ne2 {[%emt 0:00:33]} d4 {[%emt 0:01:13]} 14. e4 {[%emt 0:01:46]} Bd7 {[%emt 0:00:47]} 15. O-O {[%emt 0:00:28]} Rc8 {[%emt 0:00:02]} 16. Qb1 {[%emt 0:00:01]} Re8 {[%emt 0:00:05]} 17. Bb2 {[%emt 0:00:40]} Ne5 {[%emt 0:00:53]} 18. Nxe5 {[%emt 0:00:33]} Rxe5 {[%emt 0:00:00]} 19. Bxd4 {[%emt 0:00:44]} Bxd4 {[%emt 0:00:47]} 20. Nxd4 {[%emt 0:00:00]} Bxh3 {[%emt 0:00:08]} 21. Nf3 {[%emt 0:00:00]} Rh5 {[%emt 0:00:01]} 22. Rd1 {[%emt 0:00:10]} Bg4 {[%emt 0:00:48]} 23. e5 {[%emt 0:00:48]} Nd7 {[%emt 0:00:19]} 24. Bh7+ {[%emt 0:00:08]} Kh8 {[%emt 0:00:01]} 25. Be4 {[%emt 0:00:20]} Qe7 {[%emt 0:00:14]} 26. Re1 {[%emt 0:00:29]} Nxe5 {[%emt 0:00:11]} 27. Nxe5 {[%emt 0:00:01]} Rxe5 {[%emt 0:00:48]} 28. Bd3 {[%emt 0:00:03]} Rxe1+ {[%emt 0:00:25]} 29. Qxe1 {[%emt 0:00:00]} Qxe1+ {[%emt 0:00:01]} 30. Rxe1 {[%emt 0:00:01]} Be6 {[%emt 0:00:02]} 31. f4 {[%emt 0:00:12]} Kg8 {[%emt 0:00:21]} 32. f5 {[%emt 0:00:10]} Bd5 {[%emt 0:00:01]} 33. Re5 {[%emt 0:00:06]} Rd8 {[%emt 0:00:15]} 34. Be4 {[%emt 0:00:09]} Bxe4 {[%emt 0:00:02]} 35. Rxe4 {[%emt 0:00:00]} Kf8 {[%emt 0:00:02]} 36. a4 {[%emt 0:00:05]} Rd5 {[%emt 0:00:03]} 37. g4 {[%emt 0:00:06]} h5 {[%emt 0:00:01]} 38. gxh5 {[%emt 0:00:02]} Rxf5 {[%emt 0:00:01]} 39. Rc4 {[%emt 0:00:01]} Rxh5 {[%emt 0:00:15]} 40. Rc8+ {[%emt 0:00:06]} Ke7 {[%emt 0:00:01]} 41. Rc7+ {[%emt 0:00:00]} Ke6 {[%emt 0:00:07]} 42. Rxb7 {[%emt 0:00:00]} a5 {[%emt 0:00:05]} 43. Rb6+ {[%emt 0:00:02]} Ke7 {[%emt 0:00:06]} 44. Rb7+ {[%emt 0:00:01]} Kd6 {[%emt 0:00:09]} 45. bxa5 {[%emt 0:00:07]} Rxa5 {[%emt 0:00:03]} 46. Rxf7 {[%emt 0:00:01]} Rxa4 {[%emt 0:00:01]} 47. Rxg7 {[%emt 0:00:01]} Re4 {[%emt 0:00:01]} 48. Kg2 {[%emt 0:00:02]} Re7 {[%emt 0:00:02]} 49. Rxe7 {[%emt 0:00:01]} Kxe7 {[%emt 0:00:00]} 1/2-1/2

[Event "CCT Chessable Masters D-III 2024"]
[Site "Online"]
[Date "2024.02.04"]
[Round "4"]
[White "Sarana, Alexey"]
[Black "Paravyan, David"]
[Result "1-0"]
[ECO "D28"]
[WhiteElo "2695"]
[BlackElo "2612"]
[Annotator "ChessBase"]
[PlyCount "119"]
[EventDate "2024.01.12"]
[EventType "k.o."]
[EventCountry "NET"]
[SourceTitle "playchess.com"]
[Source "ChessBase"]
[SourceQuality "1"]
[TimeControl "600+2"]

1. d4 {[%emt 0:00:02]} d5 {[%emt 0:00:03]} 2. c4 {[%emt 0:00:01]} dxc4 {[%emt 0:00:00]} 3. Nf3 {[%emt 0:00:05]} Nf6 {[%emt 0:00:01]} 4. e3 {[%emt 0:00:03]} e6 {[%emt 0:00:01]} 5. Bxc4 {[%emt 0:00:01]} c5 {[%emt 0:00:01]} 6. O-O {[%emt 0:00:02]} Nc6 {[%emt 0:00:01]} 7. Nc3 {[%emt 0:00:09]} a6 {[%emt 0:00:01]} 8. Qe2 {[%emt 0:00:09]} b5 {[%emt 0:00:08]} 9. Bb3 {[%emt 0:00:02]} Bb7 {[%emt 0:00:01]} 10. dxc5 {[%emt 0:00:01]} Bxc5 {[%emt 0:00:02]} 11. e4 {[%emt 0:00:02]} Nd4 {[%emt 0:00:10]} 12. Nxd4 {[%emt 0:00:01]} Bxd4 {[%emt 0:00:00]} 13. e5 {[%emt 0:00:16]} Nd5 {[%emt 0:00:23]} 14. Nxd5 {[%emt 0:00:06]} Bxd5 {[%emt 0:00:00]} 15. Rd1 {[%emt 0:00:02]} Bxb3 {[%emt 0:00:01]} 16. axb3 {[%emt 0:00:01]} Qb6 {[%emt 0:00:00]} 17. Kh1 {[%emt 0:00:03]} O-O {[%emt 0:00:30]} 18. Bg5 {[%emt 0:00:02]} Qc5 {[%emt 0:00:00]} 19. f4 {[%emt 0:01:38]} f6 {[%emt 0:00:05]} 20. exf6 {[%emt 0:00:02]} Bxf6 {[%emt 0:00:02]} 21. Qxe6+ {[%emt 0:00:33]} Kh8 {[%emt 0:00:01]} 22. Bxf6 {[%emt 0:00:00]} Rxf6 {[%emt 0:00:02]} 23. Qe5 {[%emt 0:00:01]} Qb4 {[%emt 0:00:23]} 24. h3 {[%emt 0:00:33]} Raf8 {[%emt 0:00:14]} 25. Rd7 {[%emt 0:00:19]} a5 {[%emt 0:02:39]} 26. Qe7 {[%emt 0:00:36]} Qxe7 {[%emt 0:01:38]} 27. Rxe7 {[%emt 0:00:00]} Rxf4 {[%emt 0:00:05]} 28. Rxa5 {[%emt 0:00:02]} R4f5 {[%emt 0:01:08]} 29. Rb7 {[%emt 0:01:03]} h6 {[%emt 0:00:06]} 30. Kh2 {[%emt 0:00:56]} Rg5 {[%emt 0:00:16]} 31. Raxb5 {[%emt 0:00:03]} Rxb5 {[%emt 0:00:02]} 32. Rxb5 {[%emt 0:00:00]} Rf2 {[%emt 0:00:00]} 33. Re5 {[%emt 0:00:15]} Rxb2 {[%emt 0:00:02]} 34. Re3 {[%emt 0:00:00]} Kg8 {[%emt 0:00:07]} 35. Kg3 {[%emt 0:00:01]} Kf7 {[%emt 0:00:00]} 36. Kf3 {[%emt 0:00:00]} h5 {[%emt 0:00:15]} 37. g3 {[%emt 0:00:39]} g5 {[%emt 0:00:30]} 38. Ke4 {[%emt 0:00:12]} Ke6 {[%emt 0:00:12]} 39. Kd4+ {[%emt 0:00:23]} Kd6 {[%emt 0:00:01]} 40. g4 {[%emt 0:00:06]} hxg4 {[%emt 0:00:46]} 41. hxg4 {[%emt 0:00:00]} Rd2+ {[%emt 0:00:11]} 42. Ke4 {[%emt 0:00:31]} Ke6 {[%emt 0:00:09]} 43. b4 {[%emt 0:00:04]} Rf2 {[%emt 0:00:35]} 44. Kd4+ {[%emt 0:00:10]} Kd6 {[%emt 0:00:01]} 45. Re4 {[%emt 0:00:41]} Rc2 {[%emt 0:00:12]} 46. Re5 {[%emt 0:00:40]} Rb2 {[%emt 0:00:11]} 47. Rb5 {[%emt 0:00:01]} Rb1 {[%emt 0:00:06]} 48. Ke4 {[%emt 0:00:09]} Kc6 {[%emt 0:00:12]} 49. Rxg5 {[%emt 0:00:09]} Rxb4+ {[%emt 0:00:01]} 50. Kf5 {[%emt 0:00:01]} Kd7 {[%emt 0:00:01]} 51. Kf6 {[%emt 0:00:05]} Rf4+ {[%emt 0:00:04]} 52. Kg7 {[%emt 0:00:29]} Ke7 {[%emt 0:00:03]} 53. Rg6 {[%emt 0:00:02]} Ra4 {[%emt 0:00:02]} 54. g5 {[%emt 0:00:04]} Rg4 {[%emt 0:00:01]} 55. Kg8 {[%emt 0:00:05]} Rg1 {[%emt 0:00:03]} 56. Kh7 {[%emt 0:00:01]} Kf7 {[%emt 0:00:02]} 57. Rf6+ {[%emt 0:00:01]} Ke7 {[%emt 0:00:01]} 58. Kg6 {[%emt 0:00:01]} Rg2 {[%emt 0:00:01]} 59. Rf3 {[%emt 0:00:01]} Rg1 {[%emt 0:00:03]} 60. Kh6 {[%emt 0:00:00]} 1-0

[Event "CCT Chessable Masters D-III 2024"]
[Site "Online"]
[Date "2024.02.04"]
[Round "4"]
[White "Paravyan, David"]
[Black "Sarana, Alexey"]
[Result "0-1"]
[ECO "B47"]
[WhiteElo "2612"]
[BlackElo "2695"]
[Annotator "ChessBase"]
[PlyCount "102"]
[EventDate "2024.01.12"]
[EventType "k.o."]
[EventCountry "NET"]
[SourceTitle "playchess.com"]
[Source "ChessBase"]
[SourceQuality "1"]
[TimeControl "600+2"]

1. e4 {[%emt 0:00:13]} c5 {[%emt 0:00:05]} 2. Nf3 {[%emt 0:00:02]} e6 {[%emt 0:00:00]} 3. d4 {[%emt 0:00:04]} cxd4 {[%emt 0:00:01]} 4. Nxd4 {[%emt 0:00:00]} Nc6 {[%emt 0:00:01]} 5. Nc3 {[%emt 0:00:02]} a6 {[%emt 0:00:02]} 6. Be2 {[%emt 0:00:11]} Qc7 {[%emt 0:00:03]} 7. Nxc6 {[%emt 0:00:02]} bxc6 {[%emt 0:00:01]} 8. Qd4 {[%emt 0:00:01]} Nf6 {[%emt 0:00:02]} 9. e5 {[%emt 0:00:09]} Nd5 {[%emt 0:00:00]} 10. O-O {[%emt 0:00:42]} Bb7 {[%emt 0:00:02]} 11. Nxd5 {[%emt 0:00:27]} cxd5 {[%emt 0:00:01]} 12. Be3 {[%emt 0:00:01]} Be7 {[%emt 0:00:33]} 13. c3 {[%emt 0:00:55]} O-O {[%emt 0:00:08]} 14. a4 {[%emt 0:00:06]} d6 {[%emt 0:00:49]} 15. Bf4 {[%emt 0:00:08]} f6 {[%emt 0:00:10]} 16. exd6 {[%emt 0:00:02]} Bxd6 {[%emt 0:00:02]} 17. Bxd6 {[%emt 0:00:02]} Qxd6 {[%emt 0:00:00]} 18. a5 {[%emt 0:00:05]} e5 {[%emt 0:00:11]} 19. Qd2 {[%emt 0:01:15]} Rad8 {[%emt 0:00:16]} 20. Rfd1 {[%emt 0:00:01]} f5 {[%emt 0:00:08]} 21. Ra4 {[%emt 0:00:56]} Qc5 {[%emt 0:02:24]} 22. Rb4 {[%emt 0:00:43]} Rf7 {[%emt 0:00:03]} 23. Qe3 {[%emt 0:00:25]} d4 {[%emt 0:00:03]} 24. Bc4 {[%emt 0:00:01]} Kf8 {[%emt 0:02:02]} 25. Qh3 {[%emt 0:01:08]} Bd5 {[%emt 0:00:41]} 26. Bxd5 {[%emt 0:00:06]} Qxd5 {[%emt 0:00:01]} 27. Qxh7 {[%emt 0:00:02]} d3 {[%emt 0:00:09]} 28. Rb6 {[%emt 0:00:43]} e4 {[%emt 0:00:19]} 29. Rxa6 {[%emt 0:00:08]} d2 {[%emt 0:00:34]} 30. Qh8+ {[%emt 0:00:40]} Ke7 {[%emt 0:00:01]} 31. Qh4+ {[%emt 0:00:00]} Ke8 {[%emt 0:00:45]} 32. h3 {[%emt 0:00:36]} f4 {[%emt 0:00:08]} 33. c4 {[%emt 0:00:24]} Qd7 {[%emt 0:00:46]} 34. c5 {[%emt 0:00:27]} Qd5 {[%emt 0:00:15]} 35. Qh8+ {[%emt 0:00:06]} Ke7 {[%emt 0:00:01]} 36. Qh4+ {[%emt 0:00:07]} Ke8 {[%emt 0:00:05]} 37. Qg4 {[%emt 0:00:08]} Kf8 {[%emt 0:00:09]} 38. b4 {[%emt 0:00:02]} e3 {[%emt 0:00:02]} 39. fxe3 {[%emt 0:00:03]} fxe3 {[%emt 0:00:00]} 40. Re6 {[%emt 0:00:02]} Qb3 {[%emt 0:00:11]} 41. Re4 {[%emt 0:00:05]} Rf2 {[%emt 0:00:04]} 42. Kh2 {[%emt 0:00:04]} Kg8 {[%emt 0:00:01]} 43. Qg5 {[%emt 0:00:01]} Rdf8 {[%emt 0:00:06]} 44. Rg4 {[%emt 0:00:01]} R2f7 {[%emt 0:00:01]} 45. Qh5 {[%emt 0:00:03]} Qxd1 {[%emt 0:00:01]} 46. Rxg7+ {[%emt 0:00:01]} Rxg7 {[%emt 0:00:00]} 47. Qxd1 {[%emt 0:00:00]} Rd8 {[%emt 0:00:01]} 48. c6 {[%emt 0:00:05]} e2 {[%emt 0:00:00]} 49. Qb3+ {[%emt 0:00:02]} Kh8 {[%emt 0:00:01]} 50. c7 {[%emt 0:00:02]} Rxc7 {[%emt 0:00:01]} 51. Qb2+ {[%emt 0:00:02]} Rg7 {[%emt 0:00:01]} 0-1

[Event "CCT Chessable Masters D-III 2024"]
[Site "Online"]
[Date "2024.02.04"]
[Round "4"]
[White "Paravyan, David"]
[Black "Sarana, Alexey"]
[Result "1/2-1/2"]
[ECO "B46"]
[WhiteElo "2612"]
[BlackElo "2695"]
[Annotator "ChessBase"]
[PlyCount "106"]
[EventDate "2024.01.12"]
[EventType "k.o."]
[EventCountry "NET"]
[SourceTitle "playchess.com"]
[Source "ChessBase"]
[SourceQuality "1"]
[TimeControl "600+2"]

1. e4 {[%emt 0:00:03]} c5 {[%emt 0:00:04]} 2. Nf3 {[%emt 0:00:02]} e6 {[%emt 0:00:00]} 3. d4 {[%emt 0:00:01]} cxd4 {[%emt 0:00:00]} 4. Nxd4 {[%emt 0:00:00]} Nc6 {[%emt 0:00:01]} 5. Nc3 {[%emt 0:00:02]} a6 {[%emt 0:00:00]} 6. Nxc6 {[%emt 0:00:31]} bxc6 {[%emt 0:00:00]} 7. Bd3 {[%emt 0:00:03]} d5 {[%emt 0:00:04]} 8. O-O {[%emt 0:00:01]} Nf6 {[%emt 0:00:03]} 9. Bf4 {[%emt 0:00:01]} Be7 {[%emt 0:00:08]} 10. Qf3 {[%emt 0:00:01]} O-O {[%emt 0:00:13]} 11. Rfe1 {[%emt 0:00:06]} Re8 {[%emt 0:01:34]} 12. h3 {[%emt 0:00:45]} Bb7 {[%emt 0:00:14]} 13. Rad1 {[%emt 0:00:06]} Nd7 {[%emt 0:00:07]} 14. Na4 {[%emt 0:00:34]} e5 {[%emt 0:01:14]} 15. Bg3 {[%emt 0:00:06]} Bd6 {[%emt 0:00:06]} 16. b3 {[%emt 0:00:21]} Qf6 {[%emt 0:00:38]} 17. Qg4 {[%emt 0:00:11]} Qe6 {[%emt 0:00:09]} 18. exd5 {[%emt 0:00:17]} Qxg4 {[%emt 0:00:02]} 19. hxg4 {[%emt 0:00:00]} cxd5 {[%emt 0:00:01]} 20. Bf5 {[%emt 0:00:01]} Rad8 {[%emt 0:02:01]} 21. Bxd7 {[%emt 0:00:03]} Rxd7 {[%emt 0:00:01]} 22. Nb6 {[%emt 0:00:01]} Rdd8 {[%emt 0:00:00]} 23. Nxd5 {[%emt 0:00:01]} Bc5 {[%emt 0:00:09]} 24. c4 {[%emt 0:00:06]} f6 {[%emt 0:00:16]} 25. g5 {[%emt 0:00:21]} Bxd5 {[%emt 0:00:07]} 26. Rxd5 {[%emt 0:00:32]} Rxd5 {[%emt 0:00:01]} 27. cxd5 {[%emt 0:00:00]} Rd8 {[%emt 0:00:02]} 28. gxf6 {[%emt 0:00:05]} gxf6 {[%emt 0:00:00]} 29. Bh4 {[%emt 0:00:00]} Rxd5 {[%emt 0:00:29]} 30. Bxf6 {[%emt 0:00:02]} Rd2 {[%emt 0:00:00]} 31. Bh4 {[%emt 0:01:15]} Rxa2 {[%emt 0:00:07]} 32. Bg3 {[%emt 0:00:05]} Bd4 {[%emt 0:00:03]} 33. Rc1 {[%emt 0:00:12]} Rb2 {[%emt 0:00:11]} 34. Rc8+ {[%emt 0:00:02]} Kf7 {[%emt 0:00:02]} 35. Rc7+ {[%emt 0:00:09]} Kg6 {[%emt 0:00:00]} 36. Rc6+ {[%emt 0:00:03]} Kf5 {[%emt 0:00:09]} 37. Rxa6 {[%emt 0:00:03]} Rxb3 {[%emt 0:00:01]} 38. Kh2 {[%emt 0:00:01]} e4 {[%emt 0:00:08]} 39. Ra5+ {[%emt 0:00:02]} Kg6 {[%emt 0:00:01]} 40. Ra6+ {[%emt 0:00:14]} Kf7 {[%emt 0:00:01]} 41. Rd6 {[%emt 0:00:03]} Rd3 {[%emt 0:00:01]} 42. Rd5 {[%emt 0:00:37]} Ke6 {[%emt 0:00:13]} 43. Rh5 {[%emt 0:00:26]} e3 {[%emt 0:00:05]} 44. fxe3 {[%emt 0:00:03]} Bxe3 {[%emt 0:00:06]} 45. Rxh7 {[%emt 0:00:04]} Bg1+ {[%emt 0:00:08]} 46. Kh3 {[%emt 0:00:17]} Bf2 {[%emt 0:00:02]} 47. Rg7 {[%emt 0:00:01]} Kf6 {[%emt 0:00:01]} 48. Rg4 {[%emt 0:00:01]} Bxg3 {[%emt 0:00:01]} 49. Rxg3 {[%emt 0:00:01]} Rxg3+ {[%emt 0:00:01]} 50. Kxg3 {[%emt 0:00:01]} Kg5 {[%emt 0:00:01]} 51. Kf3 {[%emt 0:00:00]} Kf5 {[%emt 0:00:00]} 52. g4+ {[%emt 0:00:01]} Kg5 {[%emt 0:00:01]} 53. Ke4 {[%emt 0:00:00]} Kxg4 {[%emt 0:00:01]} 1/2-1/2

[Event "CCT Chessable Masters D-III 2024"]
[Site "Online"]
[Date "2024.02.04"]
[Round "4"]
[White "Safarli, Eltaj"]
[Black "Grischuk, Alexander"]
[Result "1/2-1/2"]
[ECO "C67"]
[WhiteElo "2604"]
[BlackElo "2732"]
[Annotator "ChessBase"]
[PlyCount "60"]
[EventDate "2024.01.12"]
[EventType "k.o."]
[EventCountry "NET"]
[SourceTitle "playchess.com"]
[Source "ChessBase"]
[SourceQuality "1"]
[TimeControl "600+2"]

1. e4 {[%emt 0:00:04]} e5 {[%emt 0:00:07]} 2. Nf3 {[%emt 0:00:01]} Nc6 {[%emt 0:00:01]} 3. Bb5 {[%emt 0:00:04]} Nf6 {[%emt 0:00:07]} 4. O-O {[%emt 0:00:02]} Nxe4 {[%emt 0:00:01]} 5. d4 {[%emt 0:00:00]} Nd6 {[%emt 0:00:02]} 6. Ba4 {[%emt 0:00:03]} exd4 {[%emt 0:00:07]} 7. c3 {[%emt 0:00:03]} Be7 {[%emt 0:00:08]} 8. cxd4 {[%emt 0:00:04]} O-O {[%emt 0:01:23]} 9. Re1 {[%emt 0:00:09]} b5 {[%emt 0:00:42]} 10. Bb3 {[%emt 0:00:03]} Bf6 {[%emt 0:00:40]} 11. Nc3 {[%emt 0:00:21]} Nf5 {[%emt 0:00:02]} 12. Re4 {[%emt 0:01:43]} Na5 {[%emt 0:00:25]} 13. Bd5 {[%emt 0:00:40]} c6 {[%emt 0:00:34]} 14. Rf4 {[%emt 0:00:01]} b4 {[%emt 0:00:31]} 15. Be4 {[%emt 0:02:09]} bxc3 {[%emt 0:00:34]} 16. Bxf5 {[%emt 0:00:03]} cxb2 {[%emt 0:00:02]} 17. Bxb2 {[%emt 0:00:00]} d5 {[%emt 0:00:02]} 18. Bd3 {[%emt 0:00:48]} Nc4 {[%emt 0:00:08]} 19. Bc3 {[%emt 0:00:09]} Re8 {[%emt 0:00:24]} 20. Ne5 {[%emt 0:00:11]} g6 {[%emt 0:00:48]} 21. Nxc4 {[%emt 0:00:15]} dxc4 {[%emt 0:00:03]} 22. Bxc4 {[%emt 0:00:01]} Be6 {[%emt 0:00:33]} 23. d5 {[%emt 0:00:14]} Bxc3 {[%emt 0:00:06]} 24. dxe6 {[%emt 0:00:01]} fxe6 {[%emt 0:00:22]} 25. Rb1 {[%emt 0:00:33]} Qxd1+ {[%emt 0:00:29]} 26. Rxd1 {[%emt 0:00:00]} Re7 {[%emt 0:00:52]} 27. Re4 {[%emt 0:00:10]} Kg7 {[%emt 0:00:09]} 28. Rd6 {[%emt 0:00:23]} e5 {[%emt 0:00:03]} 29. Rxc6 {[%emt 0:00:16]} Bd4 {[%emt 0:00:04]} 30. Bb3 {[%emt 0:00:03]} Rf8 {[%emt 0:00:05]} 1/2-1/2

[Event "CCT Chessable Masters D-III 2024"]
[Site "Online"]
[Date "2024.02.05"]
[Round "5"]
[White "Grischuk, Alexander"]
[Black "Sarana, Alexey"]
[Result "0-1"]
[ECO "D02"]
[WhiteElo "2732"]
[BlackElo "2695"]
[Annotator "TA"]
[PlyCount "98"]
[EventDate "2024.01.12"]
[EventType "k.o."]
[EventCountry "NET"]
[SourceTitle "playchess.com"]
[Source "ChessBase"]
[SourceQuality "1"]
[TimeControl "600+2"]

{[%evp 35,98,-32,20,0,-11,-4,-12,-33,-12,-6,-15,-72,-15,-48,-43,-76,-65,-282,-286,-310,-308,-279,-293,-317,-305,-300,-287,-443,-369,-305,-300,-266,-271,-444,-475,-826,-469,-539,-528,-782,-791,-766,-763,-905,-872,-914,-914,-872,-767,-804,-799,-785,-761,-739,-748,-785,-739,-926,-934,-994,-936,-977,-967,-1179,-777]} 1. d4 {[%emt 0:00:02]} Nf6 {[%emt 0:00:04]} 2. Bf4 {[%emt 0:00:02]} d5 {[%emt 0:00:05]} 3. Nf3 {[%emt 0:00:02]} e6 {[%emt 0:00:03]} 4. Nbd2 {[%emt 0:00:09]} Bd6 {[%emt 0:00:09]} 5. Bg5 {[%emt 0:00:04]} c5 {[%emt 0:00:02]} 6. e4 {[%emt 0:00:09] D02: 1 d4 d5 2 Nf3 sidelines, including 2...Nf6 3 g3 and 2...Nf6 3 Bf4.} Be7 {[%emt 0:00:01]} 7. e5 {[%emt 0:00:05]} Nfd7 {[%emt 0:00:06]} 8. Bxe7 {[%emt 0:00:03]} Qxe7 {[%emt 0:00:00]} 9. c3 {[%emt 0:00:01]} b6 {[%emt 0:00:43]} 10. Bb5 {[%emt 0:01:45]} a6 {[%emt 0:00:33]} 11. Bd3 {[%emt 0:00:51]} a5 {[%emt 0:00:01]} 12. Qe2 $146 {[%emt 0:00:52]} ({Predecessor:} 12. O-O Ba6 13. Bxa6 Nxa6 14. c4 Nc7 15. cxd5 Nxd5 16. Ne4 O-O 17. a3 cxd4 18. Qxd4 Nc5 19. Nxc5 bxc5 20. Qc4 {1-0 Stepins,E (2306)-Semjonovs,I (2201) LAT-ch Riga 2018 (6)}) 12... Ba6 {[%emt 0:00:02]} 13. Bxa6 {[%emt 0:00:01]} Nxa6 {[%emt 0:00:01]} 14. h4 {[%emt 0:00:22]} O-O {[%emt 0:00:10]} 15. h5 {[%emt 0:00:10]} h6 {[%emt 0:00:01]} 16. O-O {[%emt 0:01:15]} Rfb8 {[%emt 0:01:48]} 17. g3 {[%emt 0:00:08]} b5 {[%emt 0:00:37]} 18. a3 {[%emt 0:00:03]} Nc7 {[%emt 0:00:08]} (18... a4 $15) 19. Kg2 {[%emt 0:00:21]} c4 {[%emt 0:00:16]} 20. Nh4 {[%emt 0:01:26]} b4 {[%emt 0:00:02]} 21. a4 $1 {[%emt 0:00:01]} bxc3 {[%emt 0:00:03]} 22. bxc3 {[%emt 0:00:00]} Rb2 {[%emt 0:00:01]} 23. f4 {[%emt 0:00:33] [#]} (23. Qd1 $11 {remains equal.}) 23... Rab8 {[%emt 0:00:02]} (23... Rc2 $1 $17 {[%cal Rc2c3]} 24. Qe3 Rb8) 24. Rf2 {[%emt 0:00:52]} Rc2 {[%emt 0:00:02]} 25. Qe3 {[%emt 0:01:03]} Rbb2 {[%emt 0:00:05]} 26. Raf1 $2 {[%emt 0:00:20]} (26. Nhf3 $1 $15 Ra2 27. Rxa2 Rxa2 28. Nb1 Rxa4 29. Rb2) 26... Qa3 $19 {[%emt 0:00:26]} 27. f5 {[%emt 0:00:05]} Qxc3 {[%emt 0:00:06]} (27... Qxa4 $2 28. f6 Rxd2 (28... Qa2 29. fxg7 Rxd2 30. Qxh6 Rxf2+ 31. Kh3 Rh2+ 32. Kg4 Rxh4+ 33. Kg5 f6+ 34. exf6) 29. Rxd2 Rxd2+ 30. Qxd2 gxf6 31. Qxh6 (31. exf6 Ne8 $18) 31... Qc2+ 32. Rf2 Qe4+ 33. Kh2 $18) 28. Qxc3 {[%emt 0:00:09]} Rxc3 {[%emt 0:00:00]} 29. fxe6 {[%emt 0:00:03]} Nxe6 {[%emt 0:00:00]} 30. Nf5 {[%emt 0:00:01]} Kh7 {[%emt 0:00:25]} 31. Ne7 {[%emt 0:00:04]} (31. Nf3 {might work better.} Rcb3 32. Rxb2 Rxb2+ 33. Kh3) 31... Nb6 {[%emt 0:00:10]} (31... Nxd4 32. Nxd5 Rd3 (32... Rcc2 33. Nxc4 Rxf2+ 34. Rxf2 $11) 33. Nxc4 Rxf2+ 34. Rxf2 $17) 32. Nf3 {[%emt 0:00:01]} Rcc2 {[%emt 0:00:10]} (32... Nxa4 33. Nxd5 Rd3 34. Ra1 Rxf2+ (34... Nxd4 $2 35. Nxd4 Rxf2+ 36. Kxf2 $19) 35. Kxf2) 33. Rxc2 {[%emt 0:00:01]} Rxc2+ {[%emt 0:00:00]} 34. Kh3 $2 {[%emt 0:00:01]} (34. Rf2 Rc3 35. Ne1) 34... c3 $19 {[%emt 0:00:00]} (34... Nxa4 35. Nxd5 c3 36. Ne7 $17) 35. Nc6 {[%emt 0:00:04]} (35. Rb1 $142 Nc4 (35... Nxa4 $2 36. Nxd5 Re2 37. Ne1 $19) (35... Rb2 $2 36. Rc1 $19) 36. Nxd5) 35... Rb2 {[%emt 0:00:10]} 36. Rc1 {[%emt 0:00:02]} Nxa4 {[%emt 0:00:01]} 37. Nxa5 {[%emt 0:00:01]} Rf2 {[%emt 0:00:01]} 38. Kg4 {[%emt 0:00:02]} g6 {[%emt 0:00:22]} 39. hxg6+ {[%emt 0:00:02]} fxg6 {[%emt 0:00:00]} 40. Ne1 {[%emt 0:00:04]} h5+ {[%emt 0:00:02]} 41. Kh3 {[%emt 0:00:01]} Ng5+ {[%emt 0:00:13]} 42. Kh4 {[%emt 0:00:01]} Kh6 {[%emt 0:00:00]} 43. g4 {[%emt 0:00:01]} Rf4 {[%emt 0:00:01]} 44. Kg3 {[%emt 0:00:04]} Rxg4+ {[%emt 0:00:00]} 45. Kf2 {[%emt 0:00:01]} Rxd4 {[%emt 0:00:03]} 46. Ke3 {[%emt 0:00:03]} Re4+ {[%emt 0:00:01]} 47. Kd3 {[%emt 0:00:00]} Rxe5 {[%emt 0:00:01]} 48. Nc6 {[%emt 0:00:01]} Re4 {[%emt 0:00:03]} 49. Nd4 {[%emt 0:00:03]} Nh3 {[%emt 0:00:01]} 0-1